[Event "Late-Titled-Tuesday-Blitz-February-06-2024"]
[Site "Chess.com"]
[Date "2024.02.06"]
[Round "10"]
[White "martinmena"]
[Black "Jahonas"]
[Result "0-1"]
[WhiteElo "2177"]
[BlackElo "2374"]
[TimeControl "180+1"]
[EndTime "15:55:16 PST"]
[Termination "Jahonas won on time"]

1. c4 {[%clk 0:03:00.9]} 1... e6 {[%clk 0:02:59.5]} 2. g3 {[%clk 0:02:59.4]}
2... c5 {[%clk 0:02:59.6]} 3. Bg2 {[%clk 0:02:59.7]} 3... Nf6 {[%clk 0:02:59.9]}
4. Nc3 {[%clk 0:02:56.1]} 4... Nc6 {[%clk 0:02:59.9]} 5. e4 {[%clk 0:02:55.6]}
5... d6 {[%clk 0:02:59.5]} 6. Nge2 {[%clk 0:02:53.7]} 6... Bd7 {[%clk
0:02:58.1]} 7. O-O {[%clk 0:02:54.1]} 7... a6 {[%clk 0:02:57.7]} 8. d3 {[%clk
0:02:53.3]} 8... Qc7 {[%clk 0:02:57.7]} 9. f4 {[%clk 0:02:50.3]} 9... Be7 {[%clk
0:02:58.1]} 10. h3 {[%clk 0:02:43.1]} 10... h5 {[%clk 0:02:49.9]} 11. a3 {[%clk
0:02:40.2]} 11... Rb8 {[%clk 0:02:48.3]} 12. Rb1 {[%clk 0:02:39]} 12... b5
{[%clk 0:02:47]} 13. cxb5 {[%clk 0:02:39.1]} 13... axb5 {[%clk 0:02:46.3]} 14.
b4 {[%clk 0:02:39.4]} 14... Nd4 {[%clk 0:02:43.6]} 15. Be3 {[%clk 0:02:32.5]}
15... Nxe2+ {[%clk 0:02:40.3]} 16. Nxe2 {[%clk 0:02:23.9]} 16... e5 {[%clk
0:02:25]} 17. Qc2 {[%clk 0:02:01.7]} 17... Rc8 {[%clk 0:02:19.2]} 18. Rfc1
{[%clk 0:01:48.2]} 18... c4 {[%clk 0:02:16.6]} 19. d4 {[%clk 0:01:42.9]} 19...
O-O {[%clk 0:02:11.4]} 20. fxe5 {[%clk 0:01:35.3]} 20... dxe5 {[%clk 0:02:10]}
21. d5 {[%clk 0:01:34.1]} 21... Ra8 {[%clk 0:02:05]} 22. Qc3 {[%clk 0:01:22.8]}
22... Bd6 {[%clk 0:01:55.5]} 23. Kh2 {[%clk 0:01:12.4]} 23... Ra6 {[%clk
0:01:44]} 24. Ra1 {[%clk 0:01:06.3]} 24... Rfa8 {[%clk 0:01:41.9]} 25. Bf2
{[%clk 0:00:42.2]} 25... Qc8 {[%clk 0:01:39.1]} 26. Ng1 {[%clk 0:00:39.8]} 26...
Ra4 {[%clk 0:01:37.5]} 27. Re1 {[%clk 0:00:37.4]} 27... Qa6 {[%clk 0:01:37]} 28.
Bc5 {[%clk 0:00:32.2]} 28... Bxc5 {[%clk 0:01:32.9]} 29. bxc5 {[%clk 0:00:32.1]}
29... b4 {[%clk 0:01:33.3]} 30. Qxe5 {[%clk 0:00:22.7]} 30... Rxa3 {[%clk
0:01:26]} 31. Rxa3 {[%clk 0:00:19.7]} 31... Qxa3 {[%clk 0:01:25.8]} 32. c6
{[%clk 0:00:20.1]} 32... Be8 {[%clk 0:01:22.7]} 33. Qd4 {[%clk 0:00:15.9]} 33...
c3 {[%clk 0:01:18.7]} 34. Qc4 {[%clk 0:00:12.7]} 34... Qb2 {[%clk 0:01:07.7]}
35. Re2 {[%clk 0:00:10.5]} 35... Qc1 {[%clk 0:01:03.7]} 36. e5 {[%clk
0:00:08.5]} 36... Ra1 {[%clk 0:01:02.6]} 37. Nf3 {[%clk 0:00:08.1]} 37... Ng4+
{[%clk 0:00:59.9]} 38. hxg4 {[%clk 0:00:07.8]} 38... hxg4 {[%clk 0:01:00.3]} 39.
Re1 {[%clk 0:00:06.9]} 39... Qh6+ {[%clk 0:00:59.3]} 40. Kg1 {[%clk 0:00:01.5]}
40... Rxe1+ {[%clk 0:00:56.1]} 41. Nxe1 {[%clk 0:00:01.7]} 41... Qe3+ {[%clk
0:00:55.9]} 42. Kh2 {[%clk 0:00:02.2]} 42... Qxe1 {[%clk 0:00:55.3]} 43. d6
{[%clk 0:00:02.9]} 43... Qd2 {[%clk 0:00:52.2]} 44. d7 {[%clk 0:00:02.9]} 44...
Bxd7 {[%clk 0:00:52.1]} 45. cxd7 {[%clk 0:00:02.6]} 45... Qxd7 {[%clk
0:00:50.3]} 46. Qxb4 {[%clk 0:00:02.9]} 46... Qd2 {[%clk 0:00:50.4]} 47. Qc4
{[%clk 0:00:02.9]} 47... g6 {[%clk 0:00:43.7]} 48. Qc8+ {[%clk 0:00:03]} 48...
Kg7 {[%clk 0:00:43.3]} 49. e6 {[%clk 0:00:03.6]} 49... c2 {[%clk 0:00:41.7]} 50.
e7 {[%clk 0:00:03.4]} 50... Qh6+ {[%clk 0:00:41.6]} 51. Kg1 {[%clk 0:00:02.6]}
51... c1=Q+ {[%clk 0:00:41.9]} 52. Qxc1 {[%clk 0:00:03.2]} 52... Qxc1+ {[%clk
0:00:41.8]} 53. Kh2 {[%clk 0:00:03.8]} 53... Qh6+ {[%clk 0:00:41.6]} 54. Kg1
{[%clk 0:00:03.2]} 54... Qe3+ {[%clk 0:00:41.8]} 55. Kh2 {[%clk 0:00:03.4]}
55... Qxe7 {[%clk 0:00:42.7]} 56. Bf1 {[%clk 0:00:02.4]} 56... Qe3 {[%clk
0:00:42]} 57. Bg2 {[%clk 0:00:03.3]} 57... Qf2 {[%clk 0:00:41]} 58. Kh1 {[%clk
0:00:03]} 58... Qxg3 {[%clk 0:00:41.2]} 59. Bd5 {[%clk 0:00:02.6]} 59... Qf2
{[%clk 0:00:41.3]} 60. Be4 {[%clk 0:00:02.8]} 60... g3 {[%clk 0:00:41.5]} 61.
Bf3 {[%clk 0:00:02]} 61... f5 {[%clk 0:00:41.4]} 62. Bg2 {[%clk 0:00:01.6]}
62... g5 {[%clk 0:00:41.4]} 0-1

[Event "Late-Titled-Tuesday-Blitz-February-06-2024"]
[Site "Chess.com"]
[Date "2024.02.06"]
[Round "10"]
[White "AmanteDeMoi"]
[Black "KantorGergely"]
[Result "1-0"]
[WhiteElo "2610"]
[BlackElo "2756"]
[TimeControl "180+1"]
[EndTime "15:55:27 PST"]
[Termination "AmanteDeMoi won on time"]

1. Nf3 {[%clk 0:03:00.9]} 1... Nc6 {[%clk 0:03:00.9]} 2. c4 {[%clk 0:02:55.8]}
2... d6 {[%clk 0:03:01.2]} 3. d4 {[%clk 0:02:53.9]} 3... Bf5 {[%clk 0:03:01.3]}
4. d5 {[%clk 0:02:45]} 4... Ne5 {[%clk 0:02:56.5]} 5. Nxe5 {[%clk 0:02:39.2]}
5... dxe5 {[%clk 0:02:56.6]} 6. Nc3 {[%clk 0:02:39.1]} 6... e4 {[%clk
0:02:56.6]} 7. Bf4 {[%clk 0:02:23.8]} 7... a6 {[%clk 0:02:32.9]} 8. Qd4 {[%clk
0:02:14.3]} 8... Nf6 {[%clk 0:02:32.5]} 9. e3 {[%clk 0:02:05.8]} 9... g6 {[%clk
0:02:31]} 10. Be2 {[%clk 0:01:53.9]} 10... Bg7 {[%clk 0:02:30.7]} 11. g4 {[%clk
0:01:52.1]} 11... Bd7 {[%clk 0:02:11.6]} 12. Be5 {[%clk 0:01:42.7]} 12... O-O
{[%clk 0:02:11.5]} 13. g5 {[%clk 0:01:36.5]} 13... Ne8 {[%clk 0:02:09.5]} 14.
Bxg7 {[%clk 0:01:26.1]} 14... Nxg7 {[%clk 0:02:07.7]} 15. h4 {[%clk 0:01:19.6]}
15... Bf5 {[%clk 0:01:37.5]} 16. Nxe4 {[%clk 0:01:10]} 16... Ne6 {[%clk
0:01:31.2]} 17. dxe6 {[%clk 0:00:46.8]} 17... Qxd4 {[%clk 0:01:29.8]} 18. exd4
{[%clk 0:00:46.8]} 18... Bxe4 {[%clk 0:01:29.1]} 19. Rh3 {[%clk 0:00:44.3]}
19... fxe6 {[%clk 0:01:28.9]} 20. Re3 {[%clk 0:00:43.7]} 20... Bf5 {[%clk
0:01:28.9]} 21. Kd2 {[%clk 0:00:28.8]} 21... Rad8 {[%clk 0:01:27.5]} 22. Kc3
{[%clk 0:00:29.2]} 22... Rd7 {[%clk 0:01:27.1]} 23. Rd1 {[%clk 0:00:18.1]} 23...
Rfd8 {[%clk 0:01:27]} 24. c5 {[%clk 0:00:16.3]} 24... Kg7 {[%clk 0:01:25.7]} 25.
Bc4 {[%clk 0:00:14.9]} 25... Rf8 {[%clk 0:01:23.1]} 26. Rd2 {[%clk 0:00:14.4]}
26... Kf7 {[%clk 0:01:17.1]} 27. Rde2 {[%clk 0:00:10]} 27... Rfd8 {[%clk
0:01:17.3]} 28. Rxe6 {[%clk 0:00:07.7]} 28... Kf8 {[%clk 0:01:14.9]} 29. R6e5
{[%clk 0:00:04]} 29... Rxd4 {[%clk 0:01:13.5]} 30. Rxe7 {[%clk 0:00:04.2]} 30...
Rxc4+ {[%clk 0:01:07.6]} 31. Kxc4 {[%clk 0:00:04.1]} 31... Bd3+ {[%clk 0:01:08]}
32. Kc3 {[%clk 0:00:04.9]} 32... Bxe2 {[%clk 0:01:08.1]} 33. Rxe2 {[%clk
0:00:05.7]} 33... Rd5 {[%clk 0:01:08.3]} 34. b4 {[%clk 0:00:05.5]} 34... Kf7
{[%clk 0:01:08.2]} 35. f4 {[%clk 0:00:03.8]} 35... Rd1 {[%clk 0:01:06.8]} 36.
Kc4 {[%clk 0:00:01.8]} 36... Rh1 {[%clk 0:01:07]} 37. Re4 {[%clk 0:00:01.8]}
37... Rxh4 {[%clk 0:01:06.9]} 38. c6 {[%clk 0:00:02.3]} 38... b6 {[%clk
0:01:01.4]} 39. Rd4 {[%clk 0:00:02.8]} 39... Ke6 {[%clk 0:01:01.3]} 40. a4
{[%clk 0:00:03]} 40... Rh1 {[%clk 0:00:58.3]} 41. b5 {[%clk 0:00:03.2]} 41...
Rc1+ {[%clk 0:00:57.5]} 42. Kb4 {[%clk 0:00:03.7]} 42... Rb1+ {[%clk 0:00:57.3]}
43. Kc4 {[%clk 0:00:04.3]} 43... Ra1 {[%clk 0:00:57.2]} 44. Kb3 {[%clk 0:00:03]}
44... Rb1+ {[%clk 0:00:52.6]} 45. Ka2 {[%clk 0:00:03.2]} 45... Re1 {[%clk
0:00:45.6]} 46. bxa6 {[%clk 0:00:03.5]} 46... Kf5 {[%clk 0:00:46]} 47. a7 {[%clk
0:00:03.4]} 47... Re8 {[%clk 0:00:45.8]} 48. Rd7 {[%clk 0:00:04.1]} 48... Ra8
{[%clk 0:00:45.5]} 49. Rf7+ {[%clk 0:00:03.7]} 49... Ke4 {[%clk 0:00:44.5]} 50.
Rxc7 {[%clk 0:00:02.9]} 50... Kxf4 {[%clk 0:00:44.8]} 51. Rb7 {[%clk 0:00:03.4]}
51... Kxg5 {[%clk 0:00:43.6]} 52. c7 {[%clk 0:00:03.9]} 52... h5 {[%clk
0:00:43.8]} 53. Rb8 {[%clk 0:00:04.3]} 53... Rxa7 {[%clk 0:00:05.5]} 54. c8=Q
{[%clk 0:00:04.7]} 1-0

[Event "Late-Titled-Tuesday-Blitz-February-06-2024"]
[Site "Chess.com"]
[Date "2024.02.06"]
[Round "10"]
[White "StellarChess"]
[Black "JonasGallasch"]
[Result "1-0"]
[WhiteElo "2572"]
[BlackElo "2426"]
[TimeControl "180+1"]
[EndTime "15:55:27 PST"]
[Termination "StellarChess won by checkmate"]

1. d4 {[%clk 0:03:00.9]} 1... Nf6 {[%clk 0:02:58.2]} 2. Bg5 {[%clk 0:02:59.2]}
2... Ne4 {[%clk 0:02:54.7]} 3. Bf4 {[%clk 0:02:58.2]} 3... d5 {[%clk 0:02:53.5]}
4. f3 {[%clk 0:02:58.4]} 4... Nf6 {[%clk 0:02:53.3]} 5. e4 {[%clk 0:02:57.6]}
5... dxe4 {[%clk 0:02:50.7]} 6. Nc3 {[%clk 0:02:57.8]} 6... e6 {[%clk
0:02:45.7]} 7. fxe4 {[%clk 0:02:57.6]} 7... Bb4 {[%clk 0:02:45.7]} 8. Qd3 {[%clk
0:02:57.9]} 8... O-O {[%clk 0:02:44.7]} 9. Ne2 {[%clk 0:02:55.4]} 9... Nc6
{[%clk 0:02:32]} 10. a3 {[%clk 0:02:51.5]} 10... Bxc3+ {[%clk 0:02:30.1]} 11.
bxc3 {[%clk 0:02:47.9]} 11... e5 {[%clk 0:02:29.9]} 12. dxe5 {[%clk 0:02:39]}
12... Ng4 {[%clk 0:02:26.2]} 13. Qg3 {[%clk 0:02:27.3]} 13... Qe7 {[%clk
0:02:18.1]} 14. Nd4 {[%clk 0:01:58.1]} 14... Ngxe5 {[%clk 0:02:13.9]} 15. Bd3
{[%clk 0:01:52.9]} 15... Ng6 {[%clk 0:01:35.8]} 16. O-O {[%clk 0:01:47.4]} 16...
Nxf4 {[%clk 0:01:35]} 17. Qxf4 {[%clk 0:01:47.7]} 17... Ne5 {[%clk 0:01:34.8]}
18. Kh1 {[%clk 0:01:40]} 18... Ng6 {[%clk 0:01:33.3]} 19. Qg3 {[%clk 0:01:33.2]}
19... Qe5 {[%clk 0:01:28]} 20. Qf2 {[%clk 0:01:29.5]} 20... c6 {[%clk
0:01:24.9]} 21. Bc4 {[%clk 0:01:25.2]} 21... Be6 {[%clk 0:01:20.8]} 22. Nxe6
{[%clk 0:01:12]} 22... fxe6 {[%clk 0:01:21.7]} 23. Qd4 {[%clk 0:01:11.2]} 23...
Rfe8 {[%clk 0:01:19.4]} 24. Rad1 {[%clk 0:01:06.9]} 24... Qxd4 {[%clk
0:01:11.5]} 25. cxd4 {[%clk 0:01:03.6]} 25... Rad8 {[%clk 0:01:08.8]} 26. c3
{[%clk 0:00:59.9]} 26... h6 {[%clk 0:01:01.9]} 27. g3 {[%clk 0:00:59]} 27... Kh8
{[%clk 0:00:58.8]} 28. h4 {[%clk 0:00:59.3]} 28... Re7 {[%clk 0:00:52.3]} 29. h5
{[%clk 0:00:46.6]} 29... Nf8 {[%clk 0:00:51.7]} 30. e5 {[%clk 0:00:32]} 30...
Nh7 {[%clk 0:00:51.3]} 31. Kg2 {[%clk 0:00:29.7]} 31... Rf8 {[%clk 0:00:47.2]}
32. Rf4 {[%clk 0:00:28.6]} 32... Ree8 {[%clk 0:00:32.8]} 33. Rdf1 {[%clk
0:00:27]} 33... Kg8 {[%clk 0:00:32.7]} 34. Rxf8+ {[%clk 0:00:24]} 34... Nxf8
{[%clk 0:00:33.6]} 35. Rf4 {[%clk 0:00:23.3]} 35... Nh7 {[%clk 0:00:32.1]} 36.
Kf3 {[%clk 0:00:18.6]} 36... Ng5+ {[%clk 0:00:32.3]} 37. Ke3 {[%clk 0:00:19]}
37... Rf8 {[%clk 0:00:29.5]} 38. a4 {[%clk 0:00:18.7]} 38... Rf7 {[%clk
0:00:29.1]} 39. a5 {[%clk 0:00:18.6]} 39... Kf8 {[%clk 0:00:29.1]} 40. Bb3
{[%clk 0:00:19.1]} 40... Ke7 {[%clk 0:00:29.1]} 41. c4 {[%clk 0:00:19.7]} 41...
b6 {[%clk 0:00:18.9]} 42. a6 {[%clk 0:00:18.6]} 42... Rxf4 {[%clk 0:00:15.5]}
43. gxf4 {[%clk 0:00:18.8]} 43... Nf7 {[%clk 0:00:15.7]} 44. d5 {[%clk
0:00:16.8]} 44... Nd8 {[%clk 0:00:10.9]} 45. Ke4 {[%clk 0:00:15.5]} 45... Kf7
{[%clk 0:00:04.7]} 46. f5 {[%clk 0:00:15.1]} 46... exf5+ {[%clk 0:00:02.6]} 47.
Kxf5 {[%clk 0:00:16]} 47... c5 {[%clk 0:00:03.3]} 48. Ba4 {[%clk 0:00:12.7]}
48... Ke7 {[%clk 0:00:03.5]} 49. Bc6 {[%clk 0:00:10.2]} 49... Nf7 {[%clk
0:00:02]} 50. d6+ {[%clk 0:00:10.2]} 50... Nxd6+ {[%clk 0:00:02.6]} 51. exd6+
{[%clk 0:00:10.5]} 51... Kxd6 {[%clk 0:00:03.5]} 52. Bb5 {[%clk 0:00:10.5]}
52... Ke7 {[%clk 0:00:03.7]} 53. Kg6 {[%clk 0:00:11.2]} 53... Kf8 {[%clk
0:00:03.8]} 54. Bc6 {[%clk 0:00:11.7]} 54... Kg8 {[%clk 0:00:04.4]} 55. Bd5+
{[%clk 0:00:12.1]} 55... Kh8 {[%clk 0:00:05.3]} 56. Kf7 {[%clk 0:00:12.5]} 56...
Kh7 {[%clk 0:00:04.6]} 57. Be4+ {[%clk 0:00:12.1]} 57... Kh8 {[%clk 0:00:05.5]}
58. Bg6 {[%clk 0:00:11.7]} 58... b5 {[%clk 0:00:06.2]} 59. cxb5 {[%clk
0:00:12.1]} 59... c4 {[%clk 0:00:07.1]} 60. b6 {[%clk 0:00:12.5]} 60... c3
{[%clk 0:00:08]} 61. bxa7 {[%clk 0:00:12.7]} 61... c2 {[%clk 0:00:08.9]} 62.
a8=Q# {[%clk 0:00:13.4]} 1-0

[Event "Late-Titled-Tuesday-Blitz-February-06-2024"]
[Site "Chess.com"]
[Date "2024.02.06"]
[Round "10"]
[White "Polish_fighter3000"]
[Black "nihalsarin"]
[Result "1/2-1/2"]
[WhiteElo "3057"]
[BlackElo "3128"]
[TimeControl "180+1"]
[EndTime "15:55:28 PST"]
[Termination "Game drawn - insufficient material"]

1. d4 {[%clk 0:03:00.9]} 1... Nf6 {[%clk 0:02:58.7]} 2. Bg5 {[%clk 0:03:01.3]}
2... d5 {[%clk 0:02:58.3]} 3. Bxf6 {[%clk 0:02:58.9]} 3... exf6 {[%clk
0:02:58.4]} 4. e3 {[%clk 0:02:58.6]} 4... Bd6 {[%clk 0:02:58.3]} 5. c4 {[%clk
0:02:58.6]} 5... dxc4 {[%clk 0:02:58.3]} 6. Bxc4 {[%clk 0:02:59.5]} 6... O-O
{[%clk 0:02:58.7]} 7. Nc3 {[%clk 0:02:59.9]} 7... c6 {[%clk 0:02:59.2]} 8. Nge2
{[%clk 0:02:58.4]} 8... f5 {[%clk 0:02:59.4]} 9. Qc2 {[%clk 0:02:57.3]} 9... g6
{[%clk 0:02:53.4]} 10. h4 {[%clk 0:02:50.6]} 10... h5 {[%clk 0:02:53.6]} 11.
O-O-O {[%clk 0:02:43.8]} 11... Nd7 {[%clk 0:02:53.5]} 12. f3 {[%clk 0:02:28.7]}
12... b5 {[%clk 0:02:25.5]} 13. Bd3 {[%clk 0:02:27.1]} 13... Nb6 {[%clk
0:02:26]} 14. e4 {[%clk 0:02:17.7]} 14... b4 {[%clk 0:02:25.9]} 15. Nb1 {[%clk
0:01:45.6]} 15... fxe4 {[%clk 0:02:23.9]} 16. fxe4 {[%clk 0:01:46.5]} 16... Bg4
{[%clk 0:01:43]} 17. e5 {[%clk 0:01:46.1]} 17... Be7 {[%clk 0:01:43.5]} 18. Bxg6
{[%clk 0:01:25.6]} 18... Nd5 {[%clk 0:01:43.4]} 19. Bd3 {[%clk 0:01:11.4]} 19...
Bxh4 {[%clk 0:01:29]} 20. Bc4 {[%clk 0:00:13.7]} 20... Qg5+ {[%clk 0:01:13.6]}
21. Nd2 {[%clk 0:00:13.7]} 21... Ne3 {[%clk 0:01:12.7]} 22. Ne4 {[%clk
0:00:14.2]} 22... Nxc2+ {[%clk 0:00:29.5]} 23. Nxg5 {[%clk 0:00:14]} 23... Nxd4
{[%clk 0:00:22.3]} 24. Rxd4 {[%clk 0:00:03.4]} 24... Bxg5+ {[%clk 0:00:22.2]}
25. Kc2 {[%clk 0:00:04]} 25... Rad8 {[%clk 0:00:20.8]} 26. Rxd8 {[%clk
0:00:02.7]} 26... Rxd8 {[%clk 0:00:20.7]} 27. Kb3 {[%clk 0:00:02.8]} 27... Rd2
{[%clk 0:00:19.6]} 28. Ng3 {[%clk 0:00:03.2]} 28... Rxg2 {[%clk 0:00:16.9]} 29.
Nxh5 {[%clk 0:00:03.3]} 29... a5 {[%clk 0:00:09.6]} 30. Ka4 {[%clk 0:00:01.6]}
30... Kf8 {[%clk 0:00:05]} 31. Nf6 {[%clk 0:00:01.7]} 31... Be6 {[%clk
0:00:04.4]} 32. Bxe6 {[%clk 0:00:01.5]} 32... fxe6 {[%clk 0:00:05.3]} 33. Nh7+
{[%clk 0:00:01.8]} 33... Kg7 {[%clk 0:00:04.9]} 34. Nxg5 {[%clk 0:00:02.5]}
34... Rxg5 {[%clk 0:00:05.8]} 35. Kxa5 {[%clk 0:00:03.1]} 35... c5 {[%clk
0:00:06.5]} 36. Re1 {[%clk 0:00:02.3]} 36... Rg2 {[%clk 0:00:07.1]} 37. Kb5
{[%clk 0:00:02.4]} 37... Rxb2 {[%clk 0:00:06.2]} 38. Kxc5 {[%clk 0:00:02.8]}
38... Rxa2 {[%clk 0:00:06.6]} 39. Kxb4 {[%clk 0:00:03.3]} 39... Rc2 {[%clk
0:00:07.3]} 40. Rf1 {[%clk 0:00:03]} 40... Re2 {[%clk 0:00:05.1]} 41. Rg1+
{[%clk 0:00:03.1]} 41... Kf7 {[%clk 0:00:05.3]} 42. Rg5 {[%clk 0:00:02.7]} 42...
Rc2 {[%clk 0:00:03.7]} 43. Kb3 {[%clk 0:00:02.5]} 43... Rc8 {[%clk 0:00:04]} 44.
Kb4 {[%clk 0:00:02.6]} 44... Rc7 {[%clk 0:00:04.5]} 45. Kb5 {[%clk 0:00:02.3]}
45... Rc2 {[%clk 0:00:04.6]} 46. Kb4 {[%clk 0:00:02.6]} 46... Rc1 {[%clk
0:00:04.7]} 47. Kb5 {[%clk 0:00:02.9]} 47... Rf1 {[%clk 0:00:04.6]} 48. Kc5
{[%clk 0:00:02.2]} 48... Rf5 {[%clk 0:00:05.2]} 49. Rxf5+ {[%clk 0:00:02.5]}
49... exf5 {[%clk 0:00:06.1]} 50. Kd6 {[%clk 0:00:02.5]} 50... Ke8 {[%clk
0:00:06.7]} 51. Kd5 {[%clk 0:00:02.5]} 51... Ke7 {[%clk 0:00:07]} 52. e6 {[%clk
0:00:02.8]} 52... f4 {[%clk 0:00:07.9]} 53. Ke4 {[%clk 0:00:02.9]} 53... Kxe6
{[%clk 0:00:08.7]} 54. Kxf4 {[%clk 0:00:03.3]} 1/2-1/2

[Event "Late-Titled-Tuesday-Blitz-February-06-2024"]
[Site "Chess.com"]
[Date "2024.02.06"]
[Round "10"]
[White "pfalcon1949"]
[Black "yuriydovzik"]
[Result "0-1"]
[WhiteElo "1969"]
[BlackElo "2199"]
[TimeControl "180+1"]
[EndTime "15:55:28 PST"]
[Termination "yuriydovzik won on time"]

1. e4 {[%clk 0:03:00.9]} 1... c6 {[%clk 0:02:58.5]} 2. d4 {[%clk 0:02:59.7]}
2... Na6 {[%clk 0:02:57.5]} 3. Nf3 {[%clk 0:02:56]} 3... g6 {[%clk 0:02:50.2]}
4. c3 {[%clk 0:02:55.3]} 4... Nc7 {[%clk 0:02:48.2]} 5. Be3 {[%clk 0:02:54.9]}
5... d5 {[%clk 0:02:46.4]} 6. e5 {[%clk 0:02:54.5]} 6... Bg4 {[%clk 0:02:45.4]}
7. Nbd2 {[%clk 0:02:53.7]} 7... e6 {[%clk 0:02:39.7]} 8. h3 {[%clk 0:02:54.1]}
8... Bxf3 {[%clk 0:02:38.7]} 9. Nxf3 {[%clk 0:02:54]} 9... h5 {[%clk 0:02:35.2]}
10. Bd3 {[%clk 0:02:50.8]} 10... Bh6 {[%clk 0:02:28.4]} 11. Qc2 {[%clk
0:02:48.1]} 11... Bxe3 {[%clk 0:02:25.2]} 12. fxe3 {[%clk 0:02:48]} 12... Ne7
{[%clk 0:02:22.8]} 13. O-O {[%clk 0:02:47]} 13... Nf5 {[%clk 0:02:20.8]} 14.
Rae1 {[%clk 0:02:43.3]} 14... h4 {[%clk 0:02:11.8]} 15. Kh2 {[%clk 0:02:24.8]}
15... Qe7 {[%clk 0:02:09.8]} 16. b3 {[%clk 0:02:17.8]} 16... O-O-O {[%clk
0:02:08.5]} 17. c4 {[%clk 0:02:17.5]} 17... Kb8 {[%clk 0:02:03.7]} 18. c5 {[%clk
0:02:15.7]} 18... Ne8 {[%clk 0:01:47.7]} 19. b4 {[%clk 0:02:15.6]} 19... Neg7
{[%clk 0:01:43.3]} 20. b5 {[%clk 0:02:13.5]} 20... Rc8 {[%clk 0:01:30.4]} 21.
Qd2 {[%clk 0:02:07.3]} 21... g5 {[%clk 0:01:23]} 22. Rb1 {[%clk 0:02:00.2]}
22... g4 {[%clk 0:01:16.5]} 23. hxg4 {[%clk 0:01:54.1]} 23... Ng3 {[%clk
0:01:14.7]} 24. Rfc1 {[%clk 0:01:49.6]} 24... Ne4 {[%clk 0:01:13.6]} 25. Bxe4
{[%clk 0:01:42.9]} 25... dxe4 {[%clk 0:01:12.9]} 26. Ng1 {[%clk 0:01:42.3]}
26... Qg5 {[%clk 0:01:02]} 27. Qe2 {[%clk 0:01:27.8]} 27... Nf5 {[%clk
0:00:45.6]} 28. gxf5 {[%clk 0:01:07.3]} 28... Qg3+ {[%clk 0:00:44.7]} 29. Kh1
{[%clk 0:01:07]} 29... h3 {[%clk 0:00:44.4]} 30. Nxh3 {[%clk 0:00:59.7]} 30...
Rxh3+ {[%clk 0:00:43]} 31. gxh3 {[%clk 0:00:59.2]} 31... Rh8 {[%clk 0:00:41.1]}
32. Qh2 {[%clk 0:00:39.3]} 32... Rxh3 {[%clk 0:00:38.1]} 33. Qxh3 {[%clk
0:00:38.1]} 33... Qxh3+ {[%clk 0:00:38]} 34. Kg1 {[%clk 0:00:38.6]} 34... Qxe3+
{[%clk 0:00:38]} 35. Kh2 {[%clk 0:00:37]} 35... cxb5 {[%clk 0:00:32.2]} 36. fxe6
{[%clk 0:00:30.7]} 36... fxe6 {[%clk 0:00:30.7]} 37. Rd1 {[%clk 0:00:27.5]}
37... a6 {[%clk 0:00:28.9]} 38. d5 {[%clk 0:00:16.7]} 38... exd5 {[%clk
0:00:26.7]} 39. e6 {[%clk 0:00:17.1]} 39... Qf2+ {[%clk 0:00:25]} 40. Kh1 {[%clk
0:00:16.5]} 40... Qh4+ {[%clk 0:00:23.3]} 41. Kg1 {[%clk 0:00:15.5]} 41... Qg5+
{[%clk 0:00:23.4]} 42. Kh2 {[%clk 0:00:14.5]} 42... Qh6+ {[%clk 0:00:22.3]} 43.
Kg1 {[%clk 0:00:13]} 43... Qxe6 {[%clk 0:00:22.6]} 44. Rb2 {[%clk 0:00:10.6]}
44... e3 {[%clk 0:00:21.5]} 45. Re2 {[%clk 0:00:10]} 45... Qg4+ {[%clk
0:00:20.5]} 46. Kf1 {[%clk 0:00:08.3]} 46... d4 {[%clk 0:00:20.4]} 47. Rde1
{[%clk 0:00:07.7]} 47... Qf3+ {[%clk 0:00:19.4]} 48. Kg1 {[%clk 0:00:07.7]}
48... Kc7 {[%clk 0:00:19.9]} 49. Kh2 {[%clk 0:00:07.1]} 49... Kc6 {[%clk
0:00:19.4]} 50. Kg1 {[%clk 0:00:07.5]} 50... Kxc5 {[%clk 0:00:19.4]} 51. Kh2
{[%clk 0:00:08]} 51... Kb6 {[%clk 0:00:19.4]} 52. Kg1 {[%clk 0:00:08.5]} 52...
a5 {[%clk 0:00:19]} 53. Kh2 {[%clk 0:00:09.4]} 53... b4 {[%clk 0:00:19.2]} 54.
Kg1 {[%clk 0:00:10.1]} 54... Kc5 {[%clk 0:00:18.9]} 55. Kh2 {[%clk 0:00:10.5]}
55... Kd5 {[%clk 0:00:19]} 56. Kg1 {[%clk 0:00:08.2]} 56... Ke4 {[%clk
0:00:18.9]} 57. Rg2 {[%clk 0:00:07.9]} 57... d3 {[%clk 0:00:17]} 58. Rf1 {[%clk
0:00:06.5]} 58... d2 {[%clk 0:00:14.3]} 0-1